bitfinex/quotes_SOLUSD_20250930
["timestamp","ask_amount","ask_price","bid_price","bid_amount"]
[1759242025429,2.60091798,207.62,207.61,0.2]
[1759242026809,7.41740964,207.62,207.61,0.2]
[1759242028406,2.60091798,207.63,207.61,0.2]
[1759242028608,2.60091798,207.62,207.61,0.2]
[1759242029118,2.60091798,207.64,207.61,0.2]
[1759242030322,2.60091798,207.63,207.61,0.2]
[1759242030526,2.60091798,207.64,207.61,0.2]
[1759242030730,2.60091798,207.66,207.61,5.01671569]
[1759242030926,35.18,207.67,207.61,5.01671569]
[1759242031125,42.59627937,207.67,207.61,0.2]
[1759242031539,37.78091798,207.67,207.61,5.0166593]
[1759242031752,35.18,207.67,207.61,5.0166593]
[1759242032056,38.41088461,207.71,207.64,20.8]
[1759242032247,35.18,207.71,207.64,20.8]
[1759242032623,37.78091798,207.71,207.64,20.8]
[1759242032843,2.60091798,207.7,207.62,25.61649166]
[1759242033048,2.60091798,207.67,207.62,4.81649166]
[1759242033239,2.60091798,207.66,207.61,5.01669]
[1759242033445,2.60091798,207.67,207.61,5.01669]
[1759242033637,2.60091798,207.64,207.61,0.2]
[1759242034468,2.60091798,207.67,207.61,5.01671276]
[1759242035335,2.60091798,207.66,207.61,5.01671276]
[1759242036230,6.52535547,207.67,207.61,0.2]
[1759242036430,8.04647243,207.68,207.61,5.01668791]
[1759242036631,6.52535547,207.67,207.61,0.2]
[1759242038226,6.52535547,207.67,207.61,5.01663837]
[1759242039230,6.52535547,207.67,207.61,17.05844753]
[1759242039426,4.81324605,207.76,207.61,17.05844753]
[1759242039754,6.52535547,207.7,207.62,14.47841509]
[1759242040446,6.52535547,207.71,207.63,16.85690892]
[1759242040826,8.05299444,207.72,207.63,16.85690892]
[1759242041033,6.52535547,207.71,207.63,16.85690892]
[1759242042154,3.23860825,207.72,207.63,16.85690892]
[1759242042332,3.23860825,207.72,207.63,12.04064923]
[1759242042533,38.39846983,207.73,207.64,14.47771638]
[1759242042826,38.39846983,207.73,207.65,13.59559401]
[1759242043164,44.9238253,207.77,207.65,13.59559401]
[1759242043328,3.23846983,207.76,207.68,20.8]
[1759242043932,9.7638253,207.76,207.68,20.8]
[1759242044142,9.7638253,207.76,207.69,4.81486831]
[1759242044354,6.52535547,207.75,207.69,4.81486831]
[1759242044656,14.57712906,207.76,207.69,4.81486831]
[1759242045161,9.7638253,207.76,207.69,4.81486831]
[1759242045528,6.52535547,207.74,207.69,4.81486831]
[1759242045734,6.52535547,207.7,207.61,0.2]
[1759242045947,6.52535547,207.68,207.61,0.2]
[1759242046151,6.52535547,207.7,207.63,20.8]
[1759242046365,6.52535547,207.71,207.64,4.81602774]
[1759242046567,46.47971286,207.72,207.64,4.81602774]
[1759242046747,41.66535547,207.72,207.64,16.85609709]
[1759242047063,39.9542123,207.72,207.64,16.85609709]
[1759242047268,46.47956777,207.72,207.64,16.85609709]
[1759242047564,39.95397676,207.73,207.64,16.85609709]
[1759242047770,41.66535547,207.73,207.64,16.85609709]
[1759242047939,52.2,207.78,207.64,16.85609709]
[1759242047940,52.2,207.78,207.65,48.73559401]
[1759242048143,3.23327271,207.77,207.65,48.73559401]
[1759242048410,14.57137695,207.79,207.7,20.8]
[1759242048738,6.52535547,207.77,207.7,20.8]
[1759242049037,6.52535547,207.73,207.66,37.65447365]
[1759242049370,6.52535547,207.7,207.64,25.61600032]
[1759242049542,6.52535547,207.68,207.62,35.14]
[1759242049744,6.52535547,207.67,207.62,35.14]
[1759242050275,6.52535547,207.67,207.63,4.81624535]
[1759242050439,6.52535547,207.68,207.63,4.81624535]
[1759242050650,3.23327271,207.74,207.66,20.8]
[1759242050955,6.52535547,207.72,207.66,20.8]
[1759242051133,6.52535547,207.71,207.66,20.8]
[1759242051337,8.04675044,207.75,207.66,20.8]
[1759242051338,6.52535547,207.73,207.66,20.8]
[1759242051560,6.52535547,207.72,207.66,20.8]
[1759242051933,8.04675044,207.75,207.66,20.8]
[1759242052153,6.52535547,207.75,207.66,20.8]
[1759242052356,6.52535547,207.75,207.67,16.85366205]
[1759242052357,3.23327271,207.75,207.67,16.85366205]
[1759242052554,49.69191174,207.76,207.67,16.85366205]
[1759242052870,9.75862818,207.75,207.67,16.85366205]
[1759242053036,6.52535547,207.75,207.67,16.85366205]
[1759242053239,9.75862818,207.75,207.67,16.85366205]
[1759242053974,6.52535547,207.74,207.67,16.85366205]
[1759242054467,4.41200719,207.74,207.67,16.85366205]
[1759242055447,3.23327271,207.76,207.67,16.85366205]
[1759242055644,3.23327271,207.77,207.67,16.85366205]
[1759242055860,38.35327271,207.78,207.68,48.71559401]
[1759242056470,43.16613755,207.78,207.69,16.85203909]
[1759242056667,47.57814474,207.78,207.69,4.81486831]
[1759242056879,3.23327271,207.77,207.69,4.81486831]
[1759242057165,3.23327271,207.77,207.69,16.85203909]
[1759242057367,47.57814474,207.78,207.69,31.12731309]
[1759242057667,3.23327271,207.77,207.69,31.12731309]
[1759242058941,8.04636247,207.77,207.69,31.12731309]
[1759242059770,12.45836966,207.77,207.69,31.12731309]
[1759242060071,9.22538911,207.76,207.69,31.12731309]
[1759242060274,4.41200719,207.75,207.69,19.09014231]
[1759242060778,4.41200719,207.75,207.69,14.275274]
[1759242061077,4.41200719,207.73,207.63,12.04024021]
[1759242061279,4.41200719,207.71,207.64,9.62940966]
[1759242061485,4.41200719,207.66,207.55,0.2]
[1759242061651,4.41200719,207.63,207.56,4.81785471]
[1759242061856,4.41200719,207.62,207.56,4.81785471]
[1759242062060,4.41200719,207.63,207.57,4.81761706]
[1759242062291,9.228482,207.63,207.56,4.81784159]
[1759242062452,32.83752534,207.69,207.55,21.0]
[1759242062656,3.23579348,207.69,207.6,14.66650924]
[1759242062975,39.51200719,207.7,207.6,14.66650924]
[1759242063168,42.74780067,207.7,207.6,14.66650924]
[1759242063365,4.81497103,207.69,207.6,14.66650924]
[1759242063573,4.41200719,207.64,207.6,14.66650924]
[1759242063894,35.1,207.68,207.6,14.66650924]
[1759242064058,16.08223963,207.75,207.62,13.59559401]
[1759242064263,4.81417292,207.72,207.63,4.81625969]
[1759242064670,4.04808728,207.78,207.63,4.81625969]
[1759242064671,3.23745108,207.74,207.63,16.85690892]
[1759242064879,4.04808728,207.79,207.63,16.85690892]
[1759242064880,42.74945827,207.77,207.64,13.59559401]
[1759242065182,4.04808728,207.8,207.68,13.59559401]
[1759242065183,3.23745108,207.76,207.68,13.59559401]
[1759242065479,3.23745108,207.79,207.68,13.59559401]
[1759242066280,3.23745108,207.8,207.72,13.59559401]
[1759242066488,3.23745108,207.83,207.72,48.69559401]
[1759242066778,7.64945827,207.85,207.72,48.69559401]
[1759242066966,7.64945827,207.84,207.72,48.69559401]
[1759242067167,4.41200719,207.82,207.72,48.69559401]
[1759242067385,4.41200719,207.83,207.72,48.69559401]
[1759242067583,7.64945827,207.84,207.72,48.69559401]
[1759242067787,12.46129897,207.83,207.73,16.8487941]
[1759242068087,9.22384789,207.83,207.73,16.8487941]
[1759242068274,4.41200719,207.82,207.73,16.8487941]
[1759242068471,4.8118407,207.83,207.73,16.8487941]
[1759242068675,3.23745108,207.84,207.74,13.59559401]
[1759242068991,14.68,207.86,207.74,13.59559401]
[1759242068992,4.41200719,207.86,207.77,20.8]
[1759242069188,9.2230631,207.86,207.77,20.8]
[1759242069401,9.2230631,207.86,207.76,20.8]
[1759242069560,3.23745108,207.87,207.77,13.59559401]
[1759242069894,4.41200719,207.87,207.78,16.84473962]
[1759242070195,4.41200719,207.88,207.78,16.84473962]
[1759242070402,4.41200719,207.86,207.78,16.84473962]
[1759242070918,4.41200719,207.86,207.78,25.61278275]
[1759242071262,8.14769428,207.89,207.78,25.61278275]
[1759242071458,4.41200719,207.87,207.78,25.61278275]
[1759242071774,9.22323762,207.85,207.78,20.8]
[1759242072171,9.22323762,207.85,207.78,25.61265584]
[1759242072576,4.41200719,207.83,207.76,4.81324605]
[1759242072982,4.41200719,207.82,207.74,39.91349597]
[1759242073169,4.41200719,207.84,207.74,16.84776958]
[1759242073371,4.41200719,207.83,207.74,16.84776958]
[1759242073669,4.41200719,207.87,207.77,20.8]
[1759242073895,4.41200719,207.86,207.78,4.81278275]
[1759242074071,4.41200719,207.86,207.78,16.84473962]
[1759242074266,9.22273258,207.87,207.78,16.84473962]
[1759242074580,4.41200719,207.86,207.78,16.84473962]
[1759242075177,3.32797941,207.89,207.78,37.64473962]
[1759242075370,4.41200719,207.88,207.78,37.64473962]
[1759242075769,0.1,207.89,207.78,37.64473962]
[1759242075984,4.41200719,207.88,207.78,37.64473962]
[1759242076179,4.51200719,207.89,207.78,37.64473962]
[1759242076378,0.1,207.89,207.78,37.64473962]
[1759242076668,4.41200719,207.88,207.78,37.64473962]
[1759242079276,4.51200719,207.89,207.79,34.39559401]
[1759242079471,0.1,207.89,207.79,34.39559401]
[1759242079894,0.1,207.89,207.8,16.84311837]
[1759242080194,0.1,207.89,207.81,13.59559401]
[1759242080496,0.1,207.89,207.83,20.8]
[1759242081384,0.1,207.89,207.83,55.86]
[1759242082270,0.1,207.89,207.84,4.81139337]
[1759242082473,0.1,207.89,207.84,16.83987681]
[1759242083120,0.1,207.89,207.84,31.49378774]
[1759242083578,0.1,207.89,207.84,19.4653043]
[1759242084305,0.1,207.89,207.84,31.49378774]
[1759242084609,0.1,207.89,207.84,19.4653043]
[1759242086111,0.1,207.89,207.84,31.49378774]
[1759242087903,0.1,207.89,207.84,19.4653043]
[1759242088281,0.1,207.89,207.84,31.49378774]
[1759242088486,0.1,207.89,207.87,20.8]
[1759242089206,0.1,207.89,207.88,4.81046757]
[1759242091390,0.1,207.89,207.88,18.40606158]
[1759242091709,0.1,207.89,207.88,6.73831777]
[1759242091912,0.1,207.89,207.88,4.81046757]
[1759242093001,0.1,207.89,207.88,45.85046757]
[1759242094815,0.1,207.89,207.88,59.44606158]
[1759242096000,0.1,207.89,207.88,45.85046757]
[1759242096214,0.1,207.89,207.88,45.83046757]
[1759242096914,0.1,207.89,207.88,59.42606158]
[1759242097814,1e-08,207.89,207.88,59.42606158]
[1759242098915,1e-08,207.89,207.88,61.35381887]
[1759242099805,1e-08,207.89,207.88,59.42606158]
[1759242107821,1e-08,207.9,207.89,13.59559401]
[1759242108129,1e-08,207.9,207.88,59.42606158]
[1759242108130,0.1,207.96,207.95,34.39559401]
[1759242108331,0.1,207.96,207.95,69.39559401]
[1759242108531,0.1,207.96,207.95,35.0]
[1759242109924,0.1,207.96,207.93,35.0]
[1759242110823,0.1,207.96,207.94,4.80907954]
[1759242111017,0.1,207.96,207.94,13.59559401]
[1759242112035,0.1,207.96,207.93,35.0]
[1759242112334,4.9086456,207.96,207.91,18.4053586]
[1759242112503,1.75973415,207.96,207.91,13.59559401]
[1759242112710,1.75973415,207.96,207.91,18.40518843]
[1759242112916,0.1,207.96,207.91,18.40518843]
[1759242113321,6.56835365,207.96,207.91,13.59559401]
[1759242114025,0.1,207.96,207.91,18.40533975]
[1759242114230,0.1,207.96,207.92,34.98]
[1759242114429,0.1,207.96,207.93,13.59559401]
[1759242114937,2.69358416,207.96,207.93,13.59559401]
[1759242115116,2.59358416,207.95,207.9,4.81000341]
[1759242115437,4.90861764,207.96,207.91,13.59559401]
[1759242115641,7.5022018,207.96,207.91,13.59559401]
[1759242116135,2.59358416,207.93,207.89,13.59559401]
[1759242116335,2.59358416,207.92,207.88,6.0]
[1759242116839,7.40335093,207.92,207.88,6.0]
[1759242117139,2.59358416,207.89,207.88,6.0]
[1759242117636,5.80147721,207.89,207.88,6.0]
[1759242117935,2.59358416,207.89,207.88,6.0]
[1759242118313,5.80147721,207.89,207.88,6.0]
[1759242118634,23.39358416,207.89,207.88,6.0]
[1759242118838,28.20382034,207.89,207.88,6.0]
[1759242119040,31.41171339,207.89,207.88,6.0]
[1759242119220,28.20382034,207.89,207.88,6.0]
[1759242119539,31.41171339,207.89,207.88,6.0]
[1759242119912,43.43730384,207.89,207.76,13.59559401]
[1759242120121,2.59358416,207.79,207.76,13.59559401]
[1759242120327,38.18789305,207.88,207.76,18.40870752]
[1759242120653,2.59358416,207.86,207.76,51.24182265]
[1759242120853,2.59358416,207.86,207.76,65.56580478]
[1759242121342,2.59358416,207.85,207.76,65.56580478]
[1759242122218,2.59358416,207.83,207.76,65.56580478]
[1759242123617,2.59358416,207.8,207.76,27.91957614]
[1759242123840,2.59358416,207.77,207.76,13.59559401]
[1759242124025,2.59358416,207.77,207.72,13.59559401]
[1759242124339,59.74569318,207.83,207.72,13.59559401]
[1759242124340,2.59358416,207.74,207.72,4.81417292]
[1759242124636,2.59358416,207.73,207.69,4.81465531]
[1759242124840,2.59358416,207.72,207.7,13.59559401]
[1759242125341,2.59358416,207.71,207.69,13.59559401]
[1759242125645,2.59358416,207.7,207.67,0.2]
[1759242125945,2.59358416,207.68,207.67,0.2]
[1759242126244,6.52301886,207.71,207.67,5.01533201]
[1759242126824,6.52301886,207.7,207.67,5.01533201]
[1759242127835,6.52301886,207.71,207.68,13.59559401]
[1759242128039,6.52301886,207.72,207.68,13.59559401]
[1759242128843,6.52301886,207.72,207.7,13.59559401]
[1759242129246,6.52301886,207.71,207.67,0.2]
[1759242129441,6.52301886,207.68,207.67,5.01533201]
[1759242129642,6.52301886,207.7,207.68,13.59559401]
[1759242129849,6.52301886,207.71,207.68,13.59559401]
[1759242130341,6.52301886,207.74,207.68,13.59559401]
[1759242130547,6.52301886,207.72,207.68,13.59559401]
[1759242130840,6.52301886,207.7,207.68,18.41054881]
[1759242131639,6.52301886,207.69,207.67,0.2]
[1759242131837,6.52301886,207.68,207.67,0.2]
[1759242132537,6.52301886,207.69,207.67,18.61092602]
[1759242132860,6.52301886,207.7,207.67,18.61092602]
[1759242133150,6.52301886,207.72,207.68,13.59559401]
[1759242133341,31.4,207.76,207.68,13.59559401]
[1759242133527,6.52301886,207.74,207.68,13.59559401]
[1759242133726,6.52301886,207.73,207.68,13.59559401]
[1759242134337,6.52301886,207.74,207.68,13.59559401]
[1759242134955,6.52301886,207.72,207.68,13.59559401]
[1759242135136,6.52301886,207.72,207.69,13.59559401]
[1759242135447,6.52301886,207.74,207.69,13.59559401]
[1759242135866,55.78,207.79,207.69,13.59559401]
[1759242135867,20.8,207.78,207.69,13.59559401]
[1759242136032,6.52301886,207.78,207.69,13.59559401]
[1759242136662,6.52301886,207.77,207.69,13.59559401]
[1759242137031,6.52301886,207.78,207.71,30.44601044]
[1759242137242,6.52301886,207.81,207.72,13.59559401]
[1759242138053,6.52301886,207.79,207.72,13.59559401]
[1759242138244,6.52301886,207.79,207.74,13.59559401]
[1759242138559,6.52301886,207.81,207.74,13.59559401]
[1759242138858,6.52301886,207.79,207.74,13.59559401]
[1759242139061,6.52301886,207.77,207.74,13.59559401]
[1759242139265,6.52301886,207.75,207.72,4.81415397]
[1759242139565,6.52301886,207.74,207.72,4.81415397]
[1759242139783,6.52301886,207.75,207.72,4.81415397]
[1759242140133,6.52301886,207.74,207.72,4.81415397]
[1759242140338,6.52301886,207.75,207.72,4.81415397]
[1759242140750,6.52301886,207.73,207.61,0.2]
[1759242140943,4.81260903,207.79,207.65,13.59559401]
[1759242140944,6.52301886,207.69,207.65,13.59559401]
[1759242141273,6.52301886,207.68,207.61,12.24152342]
[1759242141447,20.8,207.74,207.61,47.20152342]
[1759242141638,6.52301886,207.68,207.62,13.59559401]
[1759242142135,6.52301886,207.68,207.65,13.59559401]
[1759242142544,11.33811901,207.68,207.64,13.59559401]
[1759242142745,34.96,207.72,207.64,13.59559401]
[1759242142950,6.52301886,207.68,207.64,13.59559401]
[1759242143649,6.52301886,207.68,207.63,13.59559401]
[1759242144037,6.52301886,207.68,207.63,18.41183418]
[1759242144367,34.96,207.71,207.62,25.63665109]
[1759242144569,25.61371913,207.74,207.64,12.03980967]
[1759242144737,6.52301886,207.7,207.67,5.01533201]
[1759242145067,6.52301886,207.68,207.67,0.2]
[1759242146637,27.32301886,207.69,207.67,0.2]
[1759242146857,6.52301886,207.68,207.67,0.2]
[1759242147048,20.8,207.69,207.67,0.2]
[1759242147049,6.52301886,207.69,207.67,0.2]
[1759242147466,6.52301886,207.68,207.67,0.2]
[1759242148342,11.33811901,207.68,207.67,0.2]
[1759242148663,6.52301886,207.68,207.67,0.2]
[1759242149860,20.8,207.72,207.67,0.2]
[1759242150061,34.96,207.71,207.67,0.2]
[1759242150260,34.96,207.71,207.67,5.01526459]
[1759242150439,6.52301886,207.71,207.67,5.01526459]
[1759242150644,4.81324605,207.76,207.68,13.59559401]
[1759242150959,6.52301886,207.72,207.68,13.59559401]
[1759242151145,34.96,207.74,207.68,13.59559401]
[1759242151146,6.52301886,207.71,207.68,13.59559401]
[1759242151657,34.96,207.74,207.68,13.59559401]
[1759242151861,6.52301886,207.71,207.68,13.59559401]
[1759242152162,20.8,207.77,207.68,13.59559401]
[1759242152466,6.52301886,207.79,207.7,13.59559401]
[1759242152848,41.48301886,207.81,207.7,13.59559401]
[1759242153051,34.96,207.86,207.74,13.59559401]
[1759242153261,41.48301886,207.86,207.74,13.59559401]
[1759242153562,6.52301886,207.84,207.74,13.59559401]
[1759242153773,6.52301886,207.85,207.78,13.59559401]
[1759242153955,6.52301886,207.88,207.78,13.59559401]
[1759242154161,4.80966883,207.92,207.78,13.59559401]
[1759242154359,39.77021452,207.9,207.8,13.59559401]
[1759242154560,46.29323338,207.9,207.8,13.59559401]
[1759242154873,34.96,207.9,207.8,13.59559401]
[1759242155179,3.20774986,207.92,207.8,34.39559401]
[1759242155369,28.42,207.93,207.84,13.59559401]
[1759242155572,34.94301886,207.93,207.84,13.59559401]
[1759242156449,34.94301886,207.93,207.86,13.59559401]
[1759242156652,6.52301886,207.92,207.86,13.59559401]
[1759242157062,34.94301886,207.93,207.84,13.59559401]
[1759242157265,6.52301886,207.92,207.84,13.59559401]
[1759242157466,6.52301886,207.91,207.84,13.59559401]
[1759242158056,6.52301886,207.89,207.84,13.59559401]
[1759242158246,6.52301886,207.9,207.84,13.59559401]
[1759242158449,6.52301886,207.9,207.85,4.81116189]
[1759242159386,9.73076872,207.92,207.84,18.40690228]
[1759242159553,6.52301886,207.92,207.84,30.43538572]
[1759242160553,9.7405906,207.92,207.84,30.43538572]
[1759242161073,0.1,207.96,207.88,13.59559401]
[1759242161957,0.1,207.96,207.92,13.59559401]
[1759242162955,0.1,207.96,207.94,13.59559401]
[1759242165077,0.1,207.96,207.94,18.40460824]
[1759242165583,0.1,207.96,207.95,13.59559401]
[1759242165871,0.1,207.96,207.95,34.39559401]
[1759242166885,0.1,207.96,207.95,20.8]
[1759242167259,0.1,207.96,207.95,34.39559401]
[1759242167556,0.1,207.96,207.95,13.59559401]
[1759242168572,0.1,207.96,207.95,18.40444229]
[1759242169167,0.1,207.96,207.95,13.59559401]
[1759242170357,0.1,207.96,207.95,18.40444229]
[1759242170556,0.1,207.96,207.95,4.80884828]
[1759242171365,0.1,207.96,207.94,4.80907954]
[1759242173460,0.1,207.96,207.93,39.20480464]
[1759242175463,0.1,207.96,207.93,34.39559401]
[1759242176864,0.1,207.96,207.9,13.59559401]
[1759242179087,4.4008799,207.94,207.9,13.59559401]
[1759242179293,4.4008799,207.93,207.9,13.59559401]
[1759242179670,4.4008799,207.94,207.9,13.59559401]
[1759242180182,4.4008799,207.91,207.83,34.88]
[1759242180384,4.4008799,207.9,207.82,34.88]
[1759242180564,4.4008799,207.9,207.83,34.39559401]
[1759242180764,4.4008799,207.9,207.83,13.59559401]
[1759242181097,20.9,207.96,207.86,13.59559401]
[1759242181387,0.1,207.96,207.86,48.47559401]
[1759242181583,0.1,207.96,207.9,13.59559401]
[1759242181787,0.1,207.96,207.9,48.47559401]
[1759242182979,0.1,207.96,207.92,13.59559401]
[1759242183503,0.1,207.96,207.91,13.59559401]
[1759242185182,0.1,207.96,207.91,18.40531406]
[1759242186489,0.1,207.96,207.91,30.4297477]
[1759242189210,0.1,207.96,207.91,18.40531406]
[1759242189505,0.1,207.96,207.91,30.4297477]
[1759242190285,0.1,207.96,207.91,18.40531406]
[1759242190591,4.90872239,207.96,207.91,13.59559401]
[1759242190776,0.1,207.96,207.91,13.59559401]
[1759242190972,0.1,207.96,207.91,18.40526225]
[1759242191586,0.1,207.96,207.91,13.59559401]
[1759242191897,4.4008799,207.92,207.8,38.87510384]
[1759242192196,1.66115013,207.92,207.82,13.59559401]
[1759242192386,1.66115013,207.91,207.82,34.39559401]
[1759242193286,1.66115013,207.88,207.82,13.59559401]
[1759242193491,1.66115013,207.86,207.81,34.86]
[1759242193688,1.66115013,207.86,207.81,39.67202586]
[1759242194009,1.66115013,207.86,207.82,13.59559401]
[1759242194208,4.40793658,207.84,207.77,20.8]
[1759242194386,4.40793658,207.85,207.78,4.81269214]
[1759242195117,4.40793658,207.85,207.79,13.59559401]
[1759242195500,4.40793658,207.85,207.79,4.81236002]
[1759242195888,4.40793658,207.85,207.76,34.86]
[1759242195889,4.40793658,207.83,207.76,34.86]
[1759242196188,3.20666446,207.89,207.77,18.40858748]
[1759242196389,3.20666446,207.89,207.8,13.59559401]
[1759242196702,3.20666446,207.94,207.84,13.59559401]
[1759242196895,4.40793658,207.93,207.84,13.59559401]
[1759242197411,7.61460104,207.93,207.84,13.59559401]
[1759242197582,7.61460104,207.93,207.85,4.81116189]
[1759242197785,4.40793658,207.93,207.85,4.81116189]
[1759242197983,4.40793658,207.92,207.85,4.81116189]
[1759242198304,7.61460104,207.92,207.85,4.81116189]
[1759242198704,4.40793658,207.91,207.84,13.59559401]
[1759242198877,4.40793658,207.89,207.84,18.40698081]
[1759242199387,4.40793658,207.89,207.82,13.59559401]
[1759242199606,9.2184588,207.88,207.82,13.59559401]
[1759242200495,4.40793658,207.89,207.82,18.4073132]
[1759242200702,12.42442052,207.91,207.82,30.43695423]
[1759242201390,12.42442052,207.91,207.79,20.8]
[1759242201391,4.40793658,207.88,207.79,20.8]
[1759242201589,4.40793658,207.84,207.77,13.59559401]
[1759242201809,4.40793658,207.83,207.77,13.59559401]
[1759242202108,4.40793658,207.84,207.77,13.59559401]
[1759242202487,3.20666446,207.88,207.77,13.59559401]
[1759242202685,8.01670528,207.9,207.81,13.59559401]
[1759242202885,9.21800773,207.9,207.81,13.59559401]
[1759242203610,4.40793658,207.9,207.83,13.59559401]
[1759242203813,4.40793658,207.91,207.83,13.59559401]
[1759242203992,28.81622515,207.92,207.83,13.59559401]
[1759242203993,12.42416173,207.92,207.83,13.59559401]
[1759242204309,7.61460104,207.93,207.86,13.59559401]
[1759242204606,4.40793658,207.92,207.86,13.59559401]
[1759242205312,4.40793658,207.92,207.88,13.59559401]
[1759242205493,3.20666446,207.93,207.88,13.59559401]
[1759242205494,4.40793658,207.93,207.88,13.59559401]
[1759242206029,4.40793658,207.92,207.88,13.59559401]
[1759242206218,4.40793658,207.91,207.83,13.59559401]
[1759242206400,4.40793658,207.9,207.83,13.59559401]
[1759242206606,20.8,207.9,207.8,4.81231953]
[1759242206801,20.8,207.9,207.81,13.59559401]
[1759242206802,4.40793658,207.89,207.81,13.59559401]
[1759242207530,4.40793658,207.87,207.81,4.81199646]
[1759242208102,4.40793658,207.89,207.82,13.59559401]
[1759242208299,4.40793658,207.9,207.82,13.59559401]
[1759242208611,9.21771003,207.91,207.82,13.59559401]
[1759242209117,4.40793658,207.89,207.82,13.59559401]
[1759242209522,4.40793658,207.9,207.84,13.59559401]
[1759242209718,4.40793658,207.89,207.84,13.59559401]
[1759242210016,4.40793658,207.92,207.84,13.59559401]
[1759242210701,4.40793658,207.88,207.82,18.40744092]
[1759242211031,4.40793658,207.85,207.8,13.59559401]
[1759242211236,4.40793658,207.82,207.8,13.59559401]
[1759242211399,4.40793658,207.81,207.68,4.81510015]
[1759242211593,4.40793658,207.78,207.69,26.72]
[1759242211815,4.40793658,207.76,207.69,47.52]
[1759242212320,4.40793658,207.74,207.67,5.01525082]
[1759242212527,4.40793658,207.72,207.67,5.01531609]
[1759242213090,4.40793658,207.72,207.68,13.59559401]
[1759242213425,4.40793658,207.72,207.67,13.79559401]
[1759242213719,4.40793658,207.72,207.67,18.6108951]
[1759242213915,4.81185641,207.82,207.67,30.64922514]
[1759242214112,4.40793658,207.75,207.67,18.6108951]
[1759242214298,4.40793658,207.72,207.67,0.2]
[1759242215397,4.40793658,207.74,207.67,5.0153262]
[1759242215704,4.81255113,207.79,207.68,13.59559401]
[1759242215920,4.81255113,207.79,207.67,17.05365624]
[1759242215921,25.20793658,207.76,207.67,0.2]
[1759242216220,4.40793658,207.72,207.67,0.2]
[1759242216426,4.40793658,207.73,207.67,0.2]
[1759242216604,4.40793658,207.7,207.67,0.2]
[1759242216918,4.40793658,207.71,207.67,0.2]
[1759242217729,4.40793658,207.71,207.68,13.59559401]
[1759242218118,4.40793658,207.72,207.68,13.59559401]
[1759242218322,4.40793658,207.71,207.67,0.2]
[1759242218817,4.40793658,207.7,207.68,13.59559401]
[1759242219061,4.40793658,207.7,207.67,5.01533079]
[1759242219062,4.40793658,207.69,207.67,0.2]
[1759242219218,4.40793658,207.68,207.67,0.2]
[1759242219720,9.22303673,207.68,207.67,0.2]
[1759242220542,4.40793658,207.68,207.67,0.2]
[1759242220757,25.20793658,207.68,207.67,0.2]
[1759242221062,30.02303673,207.68,207.67,0.2]
[1759242223740,39.24793658,207.68,207.67,0.2]
[1759242224245,44.06303673,207.68,207.67,0.2]
[1759242228430,64.86303673,207.68,207.67,0.2]
[1759242228619,20.8,207.65,207.63,0.2]
[1759242228819,20.8,207.65,207.51,0.2]
[1759242228820,20.8,207.6,207.51,0.2]
[1759242229036,25.20793658,207.56,207.51,0.2]
[1759242229232,4.40793658,207.56,207.52,13.59559401]
[1759242229434,39.26793658,207.56,207.52,13.59559401]
[1759242229621,44.08582056,207.56,207.52,13.59559401]
[1759242231227,44.08582056,207.56,207.51,0.2]
[1759242231752,39.26793658,207.56,207.51,0.2]
[1759242232050,34.86,207.56,207.51,0.2]
[1759242232252,39.26793658,207.56,207.51,0.2]
[1759242232449,44.08582056,207.56,207.51,0.2]
[1759242233349,9.22582056,207.56,207.51,0.2]
[1759242233526,44.08582056,207.56,207.51,0.2]
[1759242234642,39.67788398,207.56,207.51,0.2]
[1759242234959,44.08582056,207.56,207.51,0.2]
[1759242236095,60.06793658,207.56,207.51,0.2]
[1759242236235,62.19500791,207.56,207.51,0.2]
[1759242238153,67.01289189,207.56,207.51,0.2]
[1759242238346,32.15289189,207.56,207.51,0.2]
[1759242238552,67.01289189,207.56,207.51,0.2]
[1759242240236,31.4,207.64,207.53,4.81851953]
[1759242240438,6.53500791,207.56,207.52,18.41438529]
[1759242240656,34.86,207.56,207.52,18.41438529]
[1759242240857,6.53500791,207.59,207.56,13.59559401]
[1759242241068,6.53500791,207.6,207.56,13.59559401]
[1759242241268,4.81601251,207.65,207.56,13.59559401]
[1759242241482,34.86,207.64,207.56,13.59559401]
[1759242241762,6.53500791,207.63,207.56,13.59559401]
[1759242241965,3.99549052,207.75,207.56,13.59559401]